bitfinex/quotes_BTCUSD_20250114
["timestamp","ask_amount","ask_price","bid_price","bid_amount"]
[1736850000847,0.2365344,96904.0,96903.0,0.00328851]
[1736850000848,0.34366847,96904.0,96903.0,0.00328851]
[1736850001050,0.34466847,96904.0,96903.0,0.00328851]
[1736850001254,0.20590848,96904.0,96903.0,0.00328851]
[1736850001470,0.20700133,96904.0,96903.0,0.00328851]
[1736850001673,0.20600133,96904.0,96903.0,0.00328851]
[1736850002113,0.20700133,96904.0,96903.0,0.00328851]
[1736850004693,0.35700133,96904.0,96903.0,0.00328851]
[1736850004893,0.35590848,96904.0,96903.0,0.00328851]
[1736850005530,0.20590848,96904.0,96903.0,0.00328851]
[1736850005761,0.21352133,96904.0,96903.0,0.00328851]
[1736850006354,0.21242848,96904.0,96903.0,0.00328851]
[1736850006720,0.21352133,96904.0,96903.0,0.00328851]
[1736850007693,0.20590848,96904.0,96903.0,0.00328851]
[1736850007921,0.21242848,96904.0,96903.0,0.00328851]
[1736850008346,0.11242848,96904.0,96903.0,0.00328851]
[1736850008547,0.21242848,96904.0,96903.0,0.00328851]
[1736850010645,0.011,96904.0,96903.0,0.00328851]
[1736850011654,0.01,96904.0,96903.0,0.00328851]
[1736850012091,0.011,96904.0,96903.0,0.00328851]
[1736850012300,0.09700133,96904.0,96903.0,0.00228851]
[1736850012733,0.19700133,96904.0,96903.0,0.00228851]
[1736850012973,0.19600133,96904.0,96903.0,0.00228851]
[1736850013184,0.19700133,96904.0,96903.0,0.00228851]
[1736850013826,0.20200133,96904.0,96903.0,0.00328851]
[1736850014024,0.21231492,96904.0,96903.0,0.00328851]
[1736850014226,0.20731492,96904.0,96903.0,0.00228851]
[1736850014429,0.21131492,96904.0,96903.0,0.00328851]
[1736850014815,0.20731492,96904.0,96903.0,0.00228851]
[1736850015017,0.21431492,96904.0,96903.0,0.00328851]
[1736850015225,0.21331492,96904.0,96903.0,0.00328851]
[1736850015427,0.20631492,96904.0,96903.0,0.00228851]
[1736850015633,0.83746701,96904.0,96903.0,0.00328851]
[1736850015974,0.98737416,96904.0,96903.0,0.00328851]
[1736850016486,0.70016899,96904.0,96903.0,0.00328851]
[1736850016692,0.83873314,96904.0,96903.0,0.00328851]
[1736850016890,0.67419263,96904.0,96903.0,0.00328851]
[1736850017125,0.34899263,96904.0,96903.0,0.00328851]
[1736850017539,0.10390848,96904.0,96903.0,0.08458851]
[1736850017746,0.19590848,96904.0,96903.0,0.08458851]
[1736850017936,0.10290848,96904.0,96903.0,0.08558851]
[1736850018221,0.00179319,96909.0,96903.0,0.08558851]
[1736850018222,0.09490848,96905.0,96903.0,0.08458851]
[1736850018453,0.09490848,96904.0,96903.0,0.08458851]
[1736850018692,0.10490848,96904.0,96903.0,0.08558851]
[1736850018904,0.09590848,96904.0,96903.0,0.08458851]
[1736850019112,0.09490848,96904.0,96903.0,0.08458851]
[1736850019281,0.09590848,96904.0,96903.0,0.08458851]
[1736850019518,0.09490848,96904.0,96903.0,0.09422809]
[1736850020905,0.09790848,96904.0,96903.0,0.09422809]
[1736850021148,0.09590848,96904.0,96903.0,0.09422809]
[1736850021501,0.09690848,96904.0,96903.0,0.09422809]
[1736850021912,0.09790848,96904.0,96903.0,0.09422809]
[1736850022346,0.09790848,96904.0,96903.0,1.59422809]
[1736850022550,0.09790848,96904.0,96903.0,0.09422809]
[1736850022732,0.09700133,96904.0,96903.0,0.08458851]
[1736850022948,0.30339033,96904.0,96903.0,0.08458851]
[1736850023105,0.30229748,96904.0,96903.0,0.08458851]
[1736850023304,0.09590848,96904.0,96903.0,0.08458851]
[1736850023556,0.09700133,96904.0,96903.0,0.08458851]
[1736850023928,0.09600133,96904.0,96903.0,0.08458851]
[1736850024139,0.09700133,96904.0,96903.0,0.08458851]
[1736850024545,0.09800133,96904.0,96903.0,0.08458851]
[1736850024750,0.09600133,96904.0,96903.0,0.08458851]
[1736850024948,0.09700133,96904.0,96903.0,0.08458851]
[1736850025172,0.30539033,96904.0,96903.0,0.08458851]
[1736850025375,0.30229748,96904.0,96903.0,0.08458851]
[1736850025724,0.30629748,96904.0,96903.0,0.00228851]
[1736850025896,0.30729748,96904.0,96903.0,0.00228851]
[1736850026103,0.09590848,96904.0,96903.0,0.00228851]
[1736850026308,0.09900133,96904.0,96903.0,0.00228851]
[1736850027294,0.09790848,96904.0,96903.0,0.00228851]
[1736850027648,0.09900133,96904.0,96903.0,0.00228851]
[1736850027846,0.09700133,96904.0,96903.0,0.00228851]
[1736850028067,0.10000133,96904.0,96903.0,0.00228851]
[1736850028273,0.10100133,96904.0,96903.0,0.00228851]
[1736850028530,0.09700133,96904.0,96903.0,0.00228851]
[1736850028687,0.09790848,96904.0,96903.0,0.00228851]
[1736850029290,0.09790848,96904.0,96903.0,1.50228851]
[1736850030767,0.09790848,96904.0,96903.0,1.51191117]
[1736850033997,0.09590848,96904.0,96903.0,1.51191117]
[1736850034403,0.09490848,96904.0,96903.0,1.50428851]
[1736850034866,0.09590848,96904.0,96903.0,1.50228851]
[1736850035064,0.09790848,96904.0,96903.0,1.50228851]
[1736850035267,0.09690848,96904.0,96903.0,1.50228851]
[1736850035541,0.09790848,96904.0,96903.0,1.50228851]
[1736850035769,0.09790848,96904.0,96903.0,0.00228851]
[1736850035942,0.003,96904.0,96903.0,0.00228851]
[1736850036174,0.206379,96909.0,96908.0,0.1]
[1736850036811,0.206371,96913.0,96908.0,0.1]
[1736850037346,0.206364,96916.0,96908.0,0.1]
[1736850037745,0.004,96909.0,96908.0,0.1]
[1736850037959,0.00652,96917.0,96908.0,0.1]
[1736850038191,0.206366,96915.0,96908.0,0.1]
[1736850038452,0.006,96913.0,96912.0,0.1818]
[1736850038670,0.00652,96917.0,96912.0,0.1818]
[1736850039128,0.00652,96917.0,96916.0,0.1]
[1736850040258,0.206351,96923.0,96916.0,0.1]
[1736850040563,0.12275788,96940.0,96919.0,0.1]
[1736850040740,0.12275788,96930.0,96919.0,0.1]
[1736850040948,0.11074692,96939.0,96919.0,0.1]
[1736850041347,0.006,96923.0,96919.0,0.1]
[1736850041769,0.206342,96927.0,96919.0,0.101]
[1736850042192,0.412699,96923.0,96919.0,0.102]
[1736850042398,0.412699,96923.0,96919.0,0.1]
[1736850042807,0.412699,96923.0,96915.0,0.3]
[1736850042808,0.206356,96920.0,96915.0,0.3]
[1736850043031,0.206356,96920.0,96915.0,0.4]
[1736850043187,0.206356,96920.0,96919.0,0.1]
[1736850044448,0.00652,96921.0,96919.0,0.101]
[1736850044659,0.00652,96921.0,96919.0,0.1]
[1736850045022,0.005,96920.0,96919.0,0.1]
[1736850045228,0.00652,96921.0,96919.0,0.1]
[1736850045623,0.01152,96921.0,96919.0,0.1]
[1736850046049,0.212862,96927.0,96919.0,0.1]
[1736850046413,0.419204,96927.0,96919.0,0.1]
[1736850046613,0.206351,96923.0,96919.0,0.1]
[1736850047039,0.212862,96927.0,96919.0,0.1]
[1736850047450,0.004,96920.0,96919.0,0.1]
[1736850047702,0.00652,96927.0,96919.0,0.1]
[1736850048102,0.005,96923.0,96919.0,0.101]
[1736850048526,0.212857,96929.0,96919.0,0.1]
[1736850048744,0.212487,96929.0,96919.0,0.1]
[1736850049030,0.002,96920.0,96919.0,0.1]
[1736850049262,0.212487,96929.0,96919.0,0.1]
[1736850050635,0.003,96923.0,96919.0,0.1]
[1736850050829,0.206345,96925.0,96919.0,0.1]
[1736850051148,0.206345,96925.0,96919.0,0.101]
[1736850051495,0.206345,96925.0,96919.0,0.1]
[1736850051695,0.003,96923.0,96919.0,0.1]
[1736850052123,0.206345,96925.0,96919.0,0.1]
[1736850052325,0.210345,96925.0,96919.0,0.10179214]
[1736850053145,0.004,96925.0,96919.0,0.10179214]
[1736850053367,0.004,96925.0,96924.0,0.1]
[1736850053569,0.004,96925.0,96924.0,0.2471]
[1736850053769,0.00652,96933.0,96929.0,0.1]
[1736850054385,0.00652,96933.0,96928.0,0.3]
[1736850054386,0.00652,96933.0,96930.0,0.1]
[1736850055428,0.01152,96933.0,96930.0,0.1]
[1736850055650,0.00652,96933.0,96930.0,0.1]
[1736850057076,0.00952,96933.0,96930.0,0.1]
[1736850058374,0.412661,96932.0,96928.0,0.3]
[1736850058630,0.53847242,96932.0,96928.0,0.3]
[1736850058879,0.206334,96930.0,96928.0,0.3]
[1736850059125,0.12722692,96929.0,96928.0,0.3]
[1736850060374,0.12472655,96929.0,96928.0,0.3]
[1736850060610,0.13124655,96929.0,96928.0,0.3]
[1736850061033,0.14024655,96929.0,96928.0,0.301]
[1736850061442,0.1503419,96929.0,96928.0,0.301]
[1736850061656,0.01909535,96929.0,96928.0,0.301]
[1736850061881,0.02061535,96929.0,96928.0,0.3]
[1736850062295,0.02961535,96929.0,96928.0,0.301]
[1736850062511,0.02961535,96929.0,96928.0,0.4802]
[1736850062512,0.013,96929.0,96928.0,0.4802]
[1736850062722,0.009,96929.0,96928.0,0.5802]
[1736850062932,0.009,96929.0,96928.0,2.0802]
[1736850063590,0.01046182,96933.0,96932.0,0.1]
[1736850064041,0.206307,96943.0,96932.0,0.1]
[1736850064243,0.206307,96943.0,96935.0,0.1]
[1736850064476,0.2169072,96943.0,96934.0,0.1]
[1736850064724,0.2169072,96943.0,96935.0,0.1]
[1736850064725,0.0106002,96943.0,96935.0,0.1]
[1736850065124,0.206317,96939.0,96935.0,0.1]
[1736850065490,0.20646651,96939.0,96935.0,0.1]
[1736850065666,0.00014951,96939.0,96935.0,0.1]
[1736850066928,0.00014951,96939.0,96935.0,0.101]
[1736850067365,0.00014951,96939.0,96935.0,0.1]
[1736850067612,0.00314951,96939.0,96935.0,0.1]
[1736850068024,0.00014951,96939.0,96935.0,0.1]
[1736850068334,0.00714951,96939.0,96935.0,0.1]
[1736850068756,0.00314951,96939.0,96935.0,0.1]
[1736850069184,0.00614951,96939.0,96935.0,0.1]
[1736850069817,0.01645158,96939.0,96935.0,0.1]
[1736850069986,0.00614951,96939.0,96935.0,0.1]
[1736850073258,0.00614951,96939.0,96938.0,0.1792]
[1736850073469,0.00614951,96939.0,96938.0,0.78787545]
[1736850073742,0.0008534,96960.0,96959.0,0.3263]
[1736850074157,0.0008534,96960.0,96959.0,0.43102665]
[1736850074795,0.0008534,96960.0,96959.0,1.93102665]
[1736850075005,0.0008534,96960.0,96959.0,1.93502665]
[1736850075913,0.0008534,96960.0,96959.0,1.93102665]
[1736850077251,0.0008534,96960.0,96959.0,1.83179973]
[1736850077464,0.0008534,96960.0,96959.0,0.32679973]
[1736850077945,0.0008534,96960.0,96959.0,0.33179973]
[1736850078179,0.0008534,96960.0,96959.0,0.32779973]
[1736850078381,0.0008534,96960.0,96959.0,0.33179973]
[1736850078601,0.0008534,96960.0,96959.0,0.32779973]
[1736850078836,0.0008534,96960.0,96959.0,0.32679973]
[1736850079064,0.0008534,96960.0,96959.0,0.32779973]
[1736850079763,0.0008534,96960.0,96959.0,0.22779973]
[1736850081021,0.0008534,96960.0,96959.0,0.22679973]
[1736850081180,0.0008534,96960.0,96959.0,0.22879973]
[1736850081382,0.0008534,96960.0,96959.0,0.22679973]
[1736850081582,0.0018534,96960.0,96959.0,0.22679973]
[1736850081900,0.0018534,96960.0,96959.0,0.18069973]
[1736850082082,0.0018534,96960.0,96959.0,0.00149973]
[1736850082881,0.19114496,96960.0,96959.0,0.00149973]
[1736850083283,0.23284496,96960.0,96959.0,0.00149973]
[1736850083900,0.23284496,96960.0,96959.0,0.00049973]
[1736850084356,0.23884496,96960.0,96959.0,0.00149973]
[1736850084573,0.23184496,96960.0,96959.0,0.00049973]
[1736850084849,0.28324496,96960.0,96959.0,0.00149973]
[1736850085222,0.43124496,96960.0,96959.0,0.00149973]
[1736850085423,0.43324496,96960.0,96959.0,0.00149973]
[1736850085628,0.42424496,96960.0,96959.0,0.00049973]
[1736850086017,0.43124496,96960.0,96959.0,0.00149973]
[1736850086420,0.43424496,96960.0,96959.0,0.00249973]
[1736850087201,0.4551337,96960.0,96959.0,0.00249973]
[1736850087813,0.4461337,96960.0,96959.0,0.00149973]
[1736850088277,0.4461337,96960.0,96958.0,0.6]
[1736850088278,0.173,96959.0,96958.0,0.53961873]
[1736850088537,0.58666489,96959.0,96958.0,0.49836473]
[1736850089545,0.59566489,96959.0,96958.0,0.42600246]
[1736850089750,0.59566489,96959.0,96958.0,0.40537546]
[1736850089978,0.59766489,96959.0,96958.0,0.38574846]
[1736850090388,0.59566489,96959.0,96958.0,0.38474846]
[1736850090535,0.59566489,96959.0,96958.0,0.34349446]
[1736850090744,0.59766489,96959.0,96958.0,0.30324046]
[1736850090945,0.68139224,96959.0,96958.0,0.30224046]
[1736850091346,0.69039224,96959.0,96958.0,0.30324046]
[1736850091645,0.69039224,96959.0,96958.0,0.26098646]
[1736850091905,0.60666489,96959.0,96958.0,0.26198646]
[1736850092959,0.60666489,96959.0,96957.0,3.23440554]
[1736850093177,0.42315384,96958.0,96957.0,2.87014214]
[1736850093386,0.42315384,96958.0,96957.0,2.84161709]
[1736850093633,0.42315384,96958.0,96957.0,2.83108359]
[1736850093848,0.42315384,96958.0,96957.0,2.79473237]
[1736850093995,0.42315384,96958.0,96957.0,2.71222037]
[1736850094410,0.43215384,96958.0,96957.0,2.71322037]
[1736850094604,0.43215384,96958.0,96957.0,2.65269445]
[1736850094810,0.43215384,96958.0,96957.0,2.63206645]
[1736850095007,0.43215384,96958.0,96957.0,2.59081045]
[1736850095211,0.43215384,96958.0,96957.0,2.57118245]
[1736850095461,0.43215384,96958.0,96957.0,2.55055445]
[1736850095847,0.43215384,96958.0,96957.0,2.54955445]
[1736850096064,0.44015384,96958.0,96957.0,2.50929845]
[1736850096321,0.44667384,96958.0,96957.0,2.44741445]
[1736850096490,0.62502499,96958.0,96957.0,2.44741445]
[1736850096704,0.63154499,96958.0,96957.0,2.44741445]
[1736850097044,0.63154499,96958.0,96957.0,2.42678645]
[1736850097466,0.63154499,96958.0,96957.0,2.40615845]
[1736850097467,0.44667384,96958.0,96957.0,2.40615845]
[1736850097645,0.44667384,96958.0,96957.0,2.38553045]
[1736850099287,0.44667384,96958.0,96957.0,2.36490245]
[1736850099493,0.44015384,96958.0,96957.0,2.34427445]
[1736850099727,0.44667384,96958.0,96957.0,2.32364645]
[1736850099928,0.44667384,96958.0,96957.0,2.30301845]
[1736850100346,0.44667384,96958.0,96957.0,2.28239045]
[1736850100550,0.44667384,96958.0,96957.0,2.2222988]
[1736850100958,0.44667384,96958.0,96957.0,2.1810428]
[1736850101156,0.58527609,96958.0,96957.0,2.1604148]
[1736850101356,0.58527609,96958.0,96957.0,2.1397868]
[1736850102153,0.43934917,96958.0,96957.0,2.1397868]
[1736850102669,0.43282917,96958.0,96957.0,2.1397868]
[1736850102871,0.30074692,96958.0,96957.0,2.1397868]
[1736850107287,0.39313189,96958.0,96957.0,2.1397868]
[1736850111478,0.30074692,96958.0,96957.0,2.1397868]
[1736850111873,0.40497384,96958.0,96957.0,2.1397868]
[1736850112732,0.54357609,96958.0,96957.0,2.1397868]
[1736850113522,0.54442959,96958.0,96957.0,2.1397868]
[1736850114739,0.40582734,96958.0,96957.0,2.1397868]
[1736850120195,0.49819488,96958.0,96957.0,2.1397868]
[1736850120737,0.40582734,96958.0,96957.0,2.1397868]
[1736850123903,0.30156042,96958.0,96957.0,2.1397868]
[1736850124105,0.27856042,96958.0,96957.0,2.1397868]
[1736850124312,0.27856042,96958.0,96957.0,2.2706868]
[1736850124661,0.30156042,96958.0,96957.0,2.2706868]
[1736850124869,0.29256042,96958.0,96957.0,2.2696868]
[1736850125042,0.31887218,96958.0,96957.0,2.2696868]
[1736850125267,0.31987218,96958.0,96957.0,2.2696868]
[1736850125668,0.32687218,96958.0,96957.0,2.2706868]
[1736850126512,0.31787218,96958.0,96957.0,2.2696868]
[1736850126910,0.31787218,96958.0,96957.0,2.1377868]
[1736850127112,0.31087218,96958.0,96957.0,2.1377868]
[1736850127318,0.31887218,96958.0,96957.0,0.96028403]
[1736850127680,0.38441737,96958.0,96957.0,0.71205678]
[1736850127799,0.35119232,96958.0,96957.0,0.50144064]
[1736850128032,0.35119232,96958.0,96957.0,0.39801064]
[1736850128411,0.36819232,96958.0,96957.0,0.12226869]
[1736850128610,0.36019232,96958.0,96957.0,0.06518168]
[1736850128841,0.379277,96957.0,96956.0,2.0155]
[1736850129006,0.58773084,96957.0,96956.0,1.88946]
[1736850129185,0.58773084,96957.0,96956.0,1.7877943]
[1736850129421,0.58773084,96957.0,96956.0,1.70359617]
[1736850129575,0.58773084,96957.0,96956.0,1.65010617]
[1736850129769,0.58773084,96957.0,96956.0,1.61747817]
[1736850130093,0.58773084,96957.0,96956.0,1.49743617]
[1736850130294,0.91293084,96957.0,96956.0,1.49743617]
[1736850130495,0.91293084,96957.0,96956.0,1.49243617]
[1736850130898,0.91293084,96957.0,96956.0,1.24679782]
[1736850131124,0.92330473,96957.0,96956.0,1.17224183]
[1736850131364,0.92330473,96957.0,96956.0,1.1185113]
[1736850131550,0.94130473,96957.0,96956.0,0.82749435]
[1736850131743,0.94130473,96957.0,96956.0,0.82444326]
[1736850131951,0.94130473,96957.0,96956.0,0.3016585]
[1736850132178,0.97444853,96957.0,96956.0,0.22820606]
[1736850132369,0.97444853,96957.0,96956.0,0.20280606]
[1736850132611,0.97444853,96957.0,96956.0,0.15091606]
[1736850132747,0.82307781,96957.0,96956.0,0.11861041]
[1736850132930,0.82955781,96957.0,96956.0,0.07735441]
[1736850133348,0.67307781,96957.0,96956.0,0.07735441]
[1736850133556,0.67055781,96957.0,96956.0,0.07735441]
[1736850134003,0.35435781,96957.0,96956.0,0.20775441]
[1736850134216,0.50435781,96957.0,96956.0,0.20775441]
[1736850134424,0.12222692,96957.0,96956.0,0.20775441]
[1736850134668,0.13470692,96957.0,96956.0,0.20775441]
[1736850134911,0.11670692,96957.0,96956.0,0.20775441]
[1736850135133,0.0008535,96958.0,96956.0,0.07735441]
[1736850135342,0.206229,96980.0,96956.0,0.07735441]
[1736850135343,0.00648,96967.0,96958.0,0.0477]
[1736850135549,0.13904565,96963.0,96962.0,0.0827]
[1736850136428,0.06094565,96963.0,96962.0,0.0827]
[1736850136682,0.00648,96967.0,96962.0,0.0827]
[1736850137387,0.00648,96966.0,96962.0,0.0827]
[1736850137612,0.12275788,96980.0,96956.0,0.07735441]
[1736850137613,0.206209,96989.0,96975.0,0.1]
[1736850137787,0.00648,96985.0,96976.0,0.1249]
[1736850138011,0.00049964,96983.0,96976.0,0.1249]
[1736850139419,0.00149964,96983.0,96976.0,0.1249]
[1736850139678,0.00648,96982.0,96976.0,0.1249]
[1736850140852,0.412452,96981.0,96976.0,0.1249]
[1736850141152,0.00648,96980.0,96976.0,0.1249]
[1736850141391,0.206225,96981.0,96976.0,0.1249]
[1736850141613,0.20623,96979.0,96976.0,0.1249]
[1736850142230,0.004,96982.0,96976.0,0.1249]
[1736850142231,0.00648,96978.0,96976.0,0.1249]
[1736850142435,0.00648,96977.0,96976.0,0.1249]
[1736850144630,0.00848,96977.0,96976.0,0.1249]
[1736850145415,0.00648,96977.0,96976.0,0.1249]
[1736850145819,0.01348,96977.0,96976.0,0.1249]
[1736850148913,0.007,96977.0,96976.0,0.1249]
[1736850149490,0.00049964,96983.0,96976.0,0.1249]
[1736850149692,0.00648,96982.0,96976.0,0.1249]
[1736850149897,0.001,96977.0,96976.0,0.1249]
[1736850151045,0.001,96977.0,96976.0,0.2249]
[1736850151453,0.00648,96981.0,96976.0,0.2249]
[1736850151736,0.00049964,96983.0,96980.0,0.1]
[1736850152614,0.00049964,96983.0,96981.0,0.0764]
[1736850152980,0.00249964,96983.0,96982.0,0.1]
[1736850154498,0.00049964,96983.0,96982.0,0.1]
[1736850154701,0.00049964,96983.0,96982.0,0.1764]
[1736850154861,0.00149964,96983.0,96982.0,0.1764]
[1736850155055,0.00049964,96983.0,96982.0,0.1764]
[1736850155290,0.00049964,96983.0,96982.0,0.3254]
[1736850155602,0.00149964,96983.0,96982.0,0.3254]
[1736850155808,0.00049964,96983.0,96982.0,0.3254]
[1736850156495,0.00149964,96983.0,96982.0,0.3460118]
[1736850157618,0.00149964,96983.0,96936.0,0.17995656]
[1736850157818,0.00049964,96983.0,96970.0,0.12275788]
[1736850158025,0.00049964,96983.0,96982.0,0.02031236]
[1736850158231,0.00149964,96983.0,96982.0,0.02031236]
[1736850158428,0.00049964,96983.0,96982.0,0.02031236]
[1736850158771,0.00149964,96983.0,96982.0,0.02031236]
[1736850158927,0.00049964,96983.0,96982.0,0.02031236]
[1736850159349,0.00149964,96983.0,96982.0,0.02031236]
[1736850160149,0.1,96977.0,96971.0,0.31047192]
[1736850160386,0.1,96975.0,96971.0,0.01037824]
[1736850160605,0.1,96975.0,96970.0,0.206247]
[1736850160819,0.1,96975.0,96972.0,0.1254]
[1736850162511,0.1,96975.0,96973.0,0.206242]
[1736850163058,0.1,96975.0,96972.0,0.1264]
[1736850163651,0.1,96975.0,96972.0,0.1254]
[1736850164272,0.1,96975.0,96973.0,0.001]
[1736850164535,0.1,96974.0,96971.0,0.0008539]
[1736850164780,0.2,96972.0,96971.0,0.0008539]
[1736850165273,0.24110112,96972.0,96971.0,0.0008539]
[1736850165512,0.49532804,96972.0,96971.0,0.0008539]
[1736850165740,0.49532804,96972.0,96971.0,0.0018539]
[1736850166230,0.52892035,96972.0,96971.0,0.0018539]
[1736850166866,0.53292035,96972.0,96971.0,0.0008539]
[1736850167379,0.52992035,96972.0,96971.0,0.0008539]
[1736850167615,0.62992035,96972.0,96971.0,0.0008539]
[1736850167861,0.62892035,96972.0,96971.0,0.0008539]
[1736850168119,0.63292035,96972.0,96971.0,0.0008539]
[1736850168723,0.63792035,96972.0,96971.0,0.0008539]
[1736850169056,0.64392035,96972.0,96971.0,0.0008539]
[1736850169383,0.63492035,96972.0,96971.0,0.0008539]
[1736850169962,0.64392035,96972.0,96971.0,0.0008539]
[1736850170137,0.47981923,96972.0,96971.0,0.0008539]
[1736850171643,0.48629923,96972.0,96971.0,0.0008539]
[1736850172627,0.50929923,96972.0,96971.0,0.0008539]
[1736850172757,0.60929923,96972.0,96971.0,0.0008539]
[1736850173389,0.51352615,96972.0,96971.0,0.0008539]
[1736850173568,0.50929923,96972.0,96971.0,0.0008539]
[1736850173988,0.40929923,96972.0,96971.0,0.0008539]
[1736850174164,0.50929923,96972.0,96971.0,0.0008539]
[1736850174364,0.60929923,96972.0,96971.0,0.0008539]
[1736850174715,0.50929923,96972.0,96971.0,0.0008539]
[1736850175049,0.60129903,96972.0,96971.0,0.0008539]
[1736850175730,0.46922692,96972.0,96971.0,0.0008539]
[1736850175942,0.37570692,96972.0,96971.0,0.0008539]
[1736850176114,0.47570692,96972.0,96971.0,0.0008539]
[1736850176537,0.48970692,96972.0,96971.0,0.0008539]
[1736850176736,0.48370692,96972.0,96971.0,0.0008539]
[1736850176937,0.60293384,96972.0,96971.0,0.0008539]
[1736850177137,0.59393384,96972.0,96971.0,0.0008539]
[1736850177541,0.59593384,96972.0,96971.0,0.0008539]
[1736850177722,0.59993384,96972.0,96971.0,0.0008539]
[1736850178138,0.49570692,96972.0,96971.0,0.0008539]
[1736850178711,0.48770692,96972.0,96971.0,0.0008539]
[1736850179066,0.49670692,96972.0,96971.0,0.0008539]
[1736850179543,0.37370692,96972.0,96971.0,0.0008539]
[1736850179952,0.47370692,96972.0,96971.0,0.0008539]
[1736850180725,0.46722692,96972.0,96971.0,0.0008539]
[1736850180956,0.11948,96972.0,96971.0,0.0008539]
[1736850181171,0.013,96972.0,96971.0,0.0008539]
[1736850181391,0.01948,96972.0,96971.0,0.0008539]
[1736850181838,0.10648,96972.0,96971.0,0.0008539]
[1736850182082,0.11048,96972.0,96971.0,0.0008539]
[1736850182280,0.26248,96972.0,96971.0,0.0008539]
[1736850182694,0.26048,96972.0,96971.0,0.0008539]
[1736850182893,0.26148,96972.0,96971.0,0.0008539]
[1736850183097,0.16148,96972.0,96971.0,0.0008539]
[1736850183328,0.00748,96972.0,96971.0,0.0008539]
[1736850183545,0.001,96972.0,96971.0,0.0008539]
[1736850183741,0.001,96972.0,96971.0,0.0495539]
[1736850183948,0.001,96972.0,96971.0,0.06004136]
[1736850186192,0.00179403,96975.0,96971.0,1.56004136]
[1736850186397,0.00179403,96975.0,96972.0,0.41249]
[1736850187573,0.00179403,96975.0,96971.0,0.06204136]
[1736850187574,0.00179403,96975.0,96971.0,0.0515539]
[1736850187779,0.00179403,96975.0,96971.0,0.0495539]
[1736850188002,0.00179403,96975.0,96971.0,0.2557989]
[1736850188431,0.00648,96974.0,96971.0,0.2557989]
[1736850188607,0.00648,96974.0,96972.0,0.002]
[1736850189130,0.00648,96974.0,96971.0,0.0495539]
[1736850189673,0.1,96973.0,96971.0,0.0495539]
[1736850191123,0.1,96973.0,96971.0,0.0515539]
[1736850191483,0.00648,96974.0,96971.0,0.0495539]
[1736850191685,0.00748,96974.0,96971.0,0.0495539]
[1736850191882,0.00648,96974.0,96971.0,0.0515539]
[1736850192191,0.00827403,96975.0,96972.0,0.412489]
[1736850192406,0.001,96973.0,96972.0,0.412489]
[1736850192613,0.00827403,96975.0,96972.0,0.412489]
[1736850192812,0.001,96974.0,96972.0,0.412489]
[1736850193187,0.00179403,96975.0,96972.0,0.412489]
[1736850193408,0.00179403,96975.0,96972.0,0.51671592]
[1736850193579,0.00179403,96975.0,96974.0,0.20624]
[1736850193776,0.00179403,96975.0,96974.0,0.31149799]
[1736850193976,0.00179403,96975.0,96974.0,1.81046692]
[1736850194221,0.00179403,96975.0,96974.0,1.89306692]
[1736850195232,0.00179403,96975.0,96974.0,1.89506692]
[1736850197002,0.00179403,96975.0,96974.0,0.39506692]
[1736850197386,0.00179403,96975.0,96974.0,1.89506692]
[1736850198423,0.00179403,96975.0,96974.0,1.90542066]
[1736850200551,0.00179403,96975.0,96974.0,0.40542066]
[1736850200949,0.00179403,96975.0,96974.0,1.90542066]
[1736850204120,0.00179403,96975.0,96974.0,0.40542066]
[1736850204847,0.00179403,96975.0,96974.0,1.90542066]
[1736850207126,0.00179403,96975.0,96974.0,1.90342066]
[1736850207756,0.00163235,96975.0,96974.0,0.40342066]
[1736850208306,0.00163235,96975.0,96974.0,1.90642066]
[1736850208718,0.00163235,96975.0,96974.0,1.90342066]
[1736850208927,0.00163235,96975.0,96974.0,1.90742066]
[1736850209357,0.00263235,96975.0,96974.0,1.90742066]
[1736850209587,0.00163235,96975.0,96974.0,1.90742066]
[1736850209901,0.00263235,96975.0,96974.0,0.40742066]
[1736850210121,0.00163235,96975.0,96974.0,0.40742066]
[1736850210298,0.00163235,96975.0,96974.0,0.41884775]
[1736850210458,0.00263235,96975.0,96974.0,0.42284775]
[1736850210877,0.00163235,96975.0,96974.0,0.42284775]
[1736850211066,0.00163235,96975.0,96974.0,0.33624775]
[1736850211275,0.00163235,96975.0,96974.0,0.01842709]
[1736850211568,0.35163235,96975.0,96974.0,0.01842709]
[1736850211749,0.40003235,96975.0,96974.0,0.01842709]
[1736850211951,0.40003235,96975.0,96974.0,0.003]
[1736850212172,0.40103235,96975.0,96974.0,0.003]
[1736850212374,0.40003235,96975.0,96974.0,0.003]
[1736850213255,0.1,96972.0,96971.0,0.0008539]
[1736850213470,0.35,96972.0,96971.0,0.0008539]
[1736850214100,0.15,96972.0,96971.0,0.0008539]
[1736850214299,0.101,96972.0,96971.0,0.0008539]
[1736850214703,0.001,96972.0,96971.0,0.0008539]
[1736850214978,0.001,96972.0,96971.0,0.2071009]
[1736850215181,0.001,96972.0,96971.0,0.32193514]
[1736850215454,0.001,96972.0,96971.0,1.82193514]
[1736850216019,0.004,96972.0,96971.0,1.82193514]
[1736850216228,0.001,96972.0,96971.0,1.82193514]
[1736850216695,0.002,96972.0,96971.0,1.82193514]
[1736850216898,0.00163235,96975.0,96971.0,1.61568814]
[1736850217156,0.00163235,96975.0,96972.0,0.31047092]
[1736850217323,0.00163235,96975.0,96972.0,0.51671492]
[1736850218241,0.00163235,96975.0,96972.0,0.10422692]
[1736850218475,0.00163235,96975.0,96971.0,1.5008539]
[1736850218728,0.00163235,96975.0,96971.0,0.0008539]
[1736850218936,0.1,96974.0,96972.0,0.003]
[1736850219352,0.00648,96973.0,96972.0,0.003]
[1736850220181,0.00648,96973.0,96971.0,0.0008539]
[1736850220428,0.00648,96973.0,96971.0,0.0038539]
[1736850220853,0.00163235,96975.0,96972.0,0.31047192]
[1736850221024,0.00163235,96975.0,96971.0,0.0008539]
[1736850221199,0.00811235,96975.0,96971.0,0.0008539]
[1736850221400,0.1,96974.0,96971.0,0.0008539]
[1736850221822,0.1,96974.0,96971.0,0.0028539]
[1736850222228,0.002,96973.0,96971.0,0.0028539]
[1736850222434,0.1,96974.0,96971.0,0.0028539]
[1736850222856,0.102,96974.0,96971.0,0.0028539]
[1736850223047,0.00811235,96975.0,96971.0,0.0028539]
[1736850223298,0.002,96973.0,96972.0,0.51671592]
[1736850223514,0.00163235,96975.0,96972.0,0.59981592]